fUST/lending_fUST_20260120
["ID","MTS","AMOUNT","RATE_DAILY","PERIOD"]
[402764385,1768895444517,-898.25,7.445e-05,2]
[402764386,1768895444560,-1122.82,7.755e-05,2]
[402764392,1768895446585,-348.01294213,8.065e-05,2]
[402764393,1768895446770,-999.36705787,8.065e-05,2]
[402764394,1768895446781,-729.60684099,8.376e-05,2]
[402764395,1768895446801,-842.33315901,8.376e-05,2]
[402764396,1768895446814,-1796.51,8.686e-05,2]
[402764397,1768895446824,-2021.07,8.996e-05,2]
[402764398,1768895446833,-2245.63,9.306e-05,2]
[402764399,1768895446843,-995.96468682,0.00010789,2]
[402764400,1768895446854,-2105.41764886,0.00010844,2]
[402764401,1768895446864,-155.0,0.00010869,2]
[402764402,1768895446873,-2183.31810187,0.00010899,2]
[402764403,1768895446884,-180.11500537,0.00010959,2]
[402764404,1768895446894,-1368.0,0.00011276,2]
[402764405,1768895446904,-2148.0,0.00011276,2]
[402764406,1768895446914,-151.0,0.00011282,2]
[402764407,1768895446924,-2150.738,0.00011282,2]
[402764408,1768895446934,-461.67526834,0.00011282,2]
[402764409,1768895446943,-161.656,0.000114,2]
[402764410,1768895446953,-405.35286045,0.00011581,2]
[402764411,1768895446962,-1041.66666667,0.00011659,2]
[402764412,1768895446972,-478.75725327,0.0001183,2]
[402764413,1768895446982,-155.0,0.00011956,2]
[402764414,1768895446992,-283.53671379,0.00012123,2]
[402764415,1768895447002,-162.41845104,0.000123,2]
[402764416,1768895447011,-411.75,0.00012329,2]
[402764417,1768895447021,-576.07222248,0.00012378,2]
[402764418,1768895447031,-13426.1678967,0.00012564,2]
[402764419,1768895447041,-461.80299662,0.00012664,2]
[402764420,1768895447051,-335.95,0.000128,2]
[402764421,1768895447060,-150.99,0.000128,2]
[402764422,1768895447070,-250.000001,0.00012877,2]
[402764423,1768895447079,-237.68947624,0.00012877,2]
[402764424,1768895447089,-250.0,0.00012877,2]
[402764425,1768895447098,-729.0,0.00012893,2]
[402764426,1768895447108,-151.0,0.000129,2]
[402764427,1768895447117,-160.0,0.000129,2]
[402764428,1768895447127,-160.0,0.000129,2]
[402764429,1768895447136,-6512.69907093,0.000129,2]
[402764430,1768895447145,-155.0,0.00013043,2]
[402764431,1768895447155,-151.0,0.000132,2]
[402764432,1768895447164,-500.0,0.00013273,2]
[402764433,1768895447174,-161.15451807,0.00013273,2]
[402764434,1768895447183,-506.84723515,0.00013273,2]
[402764435,1768895447192,-500.0,0.00013273,2]
[402764436,1768895447202,-500.0,0.00013273,2]
[402764437,1768895447211,-509.92585908,0.00013273,2]
[402764438,1768895447220,-508.79636407,0.00013273,2]
[402764439,1768895447229,-500.0,0.00013273,2]
[402764440,1768895447239,-504.1318118,0.00013273,2]
[402764441,1768895447248,-500.0,0.00013273,2]
[402764442,1768895447257,-500.0,0.00013273,2]
[402764443,1768895447267,-185.44642298,0.00013273,2]
[402764444,1768895447276,-500.0,0.00013273,2]
[402764445,1768895447285,-500.0,0.00013273,2]
[402764446,1768895447295,-500.0,0.00013273,2]
[402764447,1768895447304,-500.0,0.00013273,2]
[402764448,1768895447313,-250.0,0.00013288,2]
[402764449,1768895447323,-879.376,0.00013358,2]
[402764450,1768895447332,-151.0,0.000134,2]
[402764451,1768895447342,-897.00226326,0.000134,2]
[402764452,1768895447352,-250.0,0.00013562,2]
[402764453,1768895447362,-459.00250374,0.00013581,2]
[402764454,1768895447372,-283.53671379,0.00013598,2]
[402764455,1768895447381,-160.0,0.000136,2]
[402764456,1768895447391,-160.0,0.000136,2]
[402764457,1768895447400,-160.0,0.000136,2]
[402764458,1768895447409,-2000.0,0.00013619,2]
[402764459,1768895447419,-2000.0,0.00013619,2]
[402764460,1768895447429,-2000.0,0.00013619,2]
[402764461,1768895447438,-2000.0,0.00013619,2]
[402764462,1768895447447,-2000.0,0.00013619,2]
[402764463,1768895447457,-2000.0,0.00013619,2]
[402764464,1768895447467,-2000.0,0.00013619,2]
[402764465,1768895447477,-300.0,0.00013673,2]
[402764466,1768895447487,-20259.51818791,0.00013694,3]
[402764467,1768895447500,-1670.79218322,0.00013694,3]
[402764468,1768895506806,348.57992715,7.6e-05,2]
[402764469,1768895519824,203.64,6.946e-05,2]
[402764470,1768895520262,271.52,7.248e-05,2]
[402764471,1768895520739,339.4,7.55e-05,2]
[402764472,1768895521103,-389.79848523,7.796e-05,2]
[402764473,1768895521129,-500.0,7.796e-05,2]
[402764474,1768895521154,-85.30857622,7.797e-05,2]
[402764475,1768895527736,-263.18293852,7.797e-05,2]
[402764476,1768895529390,-227.02622394,7.796e-05,2]
[402764477,1768895529416,-88.93377606,7.796e-05,2]
[402764478,1768895534189,-251.03,7.796e-05,2]
[402764479,1768895535753,-160.03622394,7.796e-05,2]
[402764480,1768895535777,-26.12377606,7.796e-05,2]
[402764481,1768895538361,-221.38748821,7.796e-05,2]
[402764482,1768895541797,-270.93510035,7.796e-05,2]
[402764483,1768895541824,-15.33073388,7.797e-05,2]
[402764484,1768895546690,-136.17775138,7.797e-05,2]
[402764485,1768895546720,-26.75852675,7.797e-05,2]
[402764486,1768895550422,-184.24692763,7.797e-05,2]
[402764487,1768895550449,-16.748291,7.797e-05,2]
[402764488,1768895552002,-203.64178857,7.797e-05,2]
[402764489,1768895556394,-157.51395129,7.797e-05,2]
[402764490,1768895556422,-50.50271724,7.853e-05,2]
[402764491,1768895559371,-156.33034166,7.853e-05,2]
[402764492,1768895567456,4794.73007285,7.698e-05,2]
[402764493,1768895567484,10000.01,7.698e-05,2]
[402764494,1768895567512,10000.01,7.698e-05,2]
[402764495,1768895571965,-411.39720033,7.698e-05,2]
[402764496,1768895573556,-282.63540539,7.698e-05,2]
[402764497,1768895577054,-181.56102041,7.698e-05,2]
[402764498,1768895579137,-228.48314695,7.698e-05,2]
[402764499,1768895581736,-259.35170491,7.698e-05,2]
[402764500,1768895585858,-175.79898548,7.697e-05,2]
[402764501,1768895591144,-124.20101452,7.697e-05,2]
[402764502,1768895591179,-128.88431572,7.698e-05,2]
[402764503,1768895593004,-202.54440662,7.698e-05,2]
[402764504,1768895594969,242.82,6.634e-05,2]
[402764505,1768895595405,485.63,6.95e-05,2]
[402764506,1768895598172,-167.48742703,7.266e-05,2]
[402764507,1768895600858,-306.27257297,7.266e-05,2]
[402764508,1768895679096,239.34,6.592e-05,2]
[402764509,1768895679536,478.69,6.906e-05,2]
[402764510,1768895680018,718.03,7.22e-05,2]
[402764511,1768895687597,-192.88672286,7.534e-05,2]
[402764512,1768895696223,-764.49327714,7.534e-05,2]
[402764513,1768895696915,-267.77133076,7.616e-05,2]
[402764514,1768895696941,-61.13134047,7.697e-05,2]
[402764515,1768895700120,-238.86865953,7.697e-05,2]
[402764516,1768895700149,-669.75194638,7.698e-05,2]
[402764517,1768895759696,260.2,6.191e-05,2]
[402764518,1768895760139,520.39,6.486e-05,2]
[402764519,1768895760688,780.59,6.78e-05,2]
[402764520,1768895761134,1040.79,7.075e-05,2]
[402764521,1768895761595,1300.98,7.37e-05,2]
[402764522,1768895824934,-1952.90505993,0.00018,120]
[402764523,1768895824998,-997.01584267,0.0002,120]
[402764524,1768895825051,-3906.0954711,0.0002,120]
[402764525,1768895825103,-168.47509372,0.00020398,120]
[402764526,1768895825162,-194.0,0.00021038,120]
[402764527,1768895825214,-224.0637492,0.00021239,120]
[402764528,1768895825265,-194.0,0.0002209,120]
[402764529,1768895825315,-194.0,0.00023194,120]
[402764530,1768895825364,-2142.76413893,0.00024,120]
[402764531,1768895825409,-865.97430859,0.00024108,120]
[402764532,1768895825459,-200.0,0.000245,120]
[402764533,1768895825510,-726.26513094,0.00025,120]
[402764534,1768895825564,-19434.08091205,0.00027,120]
[402764535,1768895825615,-1500.0,0.00027396,120]
[402764536,1768895825661,-1500.0,0.00027396,120]
[402764537,1768895825704,-506.02145762,0.00027396,120]
[402764538,1768895825746,-172.888472,0.00027397,120]
[402764539,1768895825794,-172.888472,0.00027397,120]
[402764540,1768895825836,-158.918949,0.00027397,120]
[402764541,1768895825879,-158.918947,0.00027397,120]
[402764542,1768895825924,-158.918947,0.00027397,120]
[402764543,1768895825970,-500.0,0.00027397,120]
[402764544,1768895826017,-500.0,0.00027397,120]
[402764545,1768895826066,-418.95437922,0.00027397,120]
[402764546,1768895826120,-505.72548064,0.00027397,120]
[402764547,1768895826169,-500.0,0.00027397,120]
[402764548,1768895826217,-502.53200034,0.00027397,120]
[402764549,1768895826263,-500.0,0.00027397,120]
[402764550,1768895826308,-500.0,0.00027397,120]
[402764551,1768895826353,-500.0,0.00027397,120]
[402764552,1768895826400,-500.0,0.00027397,120]
[402764553,1768895826448,-500.0,0.00027397,120]
[402764554,1768895826501,-500.0,0.00027397,120]
[402764555,1768895826548,-502.06932776,0.00027397,120]
[402764556,1768895826596,-500.0,0.00027397,120]
[402764557,1768895826644,-500.0,0.00027397,120]
[402764558,1768895826693,-213.83370743,0.00027397,120]
[402764559,1768895826743,-500.0,0.00027397,120]
[402764560,1768895826792,-577.82473175,0.00027397,120]
[402764561,1768895826840,-500.0,0.00027397,120]
[402764562,1768895826895,-501.33638845,0.00027397,120]
[402764563,1768895826947,-500.0,0.00027397,120]
[402764564,1768895827000,-500.0,0.00027397,120]
[402764565,1768895827051,-500.0,0.00027397,120]
[402764566,1768895827101,-521.49667056,0.00027397,120]
[402764567,1768895827154,-500.0,0.00027397,120]
[402764568,1768895827203,-500.0,0.00027397,120]
[402764569,1768895827252,-377.94538726,0.00027397,120]
[402764570,1768895827304,-500.0,0.00027397,120]
[402764571,1768895827353,-500.93189267,0.00027397,120]
[402764572,1768895827403,-500.0,0.00027397,120]
[402764573,1768895827454,-502.62505936,0.00027397,120]
[402764574,1768895827507,-501.00650352,0.00027397,120]
[402764575,1768895827559,-500.84997227,0.00027397,120]
[402764576,1768895827616,-500.0,0.00027397,120]
[402764577,1768895827669,-500.0,0.00027397,120]
[402764578,1768895827721,-426.44217961,0.00027397,120]
[402764579,1768895827770,-500.0,0.00027397,120]
[402764580,1768895827817,-597.46332158,0.00027397,120]
[402764581,1768895827865,-500.0,0.00027397,120]
[402764582,1768895827913,-445.92018926,0.00027397,120]
[402764583,1768895827964,-500.0,0.00027397,120]
[402764584,1768895828015,-520.12636407,0.00027397,120]
[402764585,1768895828066,-500.0,0.00027397,120]
[402764586,1768895828114,-500.0,0.00027397,120]
[402764587,1768895828164,-588.13927455,0.00027397,120]
[402764588,1768895828218,-501.44115939,0.00027397,120]
[402764589,1768895828269,-500.0,0.00027397,120]
[402764590,1768895828320,-500.0,0.00027397,120]
[402764591,1768895828368,-500.0,0.00027397,120]
[402764592,1768895828416,-501.06271935,0.00027397,120]
[402764593,1768895828695,-517.07115048,0.00027397,120]
[402764594,1768895828747,-500.0,0.00027397,120]
[402764595,1768895828797,-501.18420445,0.00027397,120]
[402764596,1768895828846,-500.0,0.00027397,120]
[402764597,1768895828897,-500.0,0.00027397,120]
[402764598,1768895828953,-500.0,0.00027397,120]
[402764599,1768895829011,-500.0,0.00027397,120]
[402764600,1768895829067,-500.0,0.00027397,120]
[402764601,1768895829120,-500.0,0.00027397,120]
[402764602,1768895829177,-428.82510784,0.00027397,120]
[402764603,1768895829229,-500.0,0.00027397,120]
[402764604,1768895829293,-500.0,0.00027397,120]
[402764605,1768895829344,-502.30755221,0.00027397,120]
[402764606,1768895829394,-511.79992432,0.00027397,120]
[402764607,1768895829448,-500.0,0.00027397,120]
[402764608,1768895829508,-500.86007601,0.00027397,120]
[402764609,1768895829563,-500.0,0.00027397,120]
[402764610,1768895829617,-500.0,0.00027397,120]
[402764611,1768895829670,-500.0,0.00027397,120]
[402764612,1768895829724,-501.00851326,0.00027397,120]
[402764613,1768895829780,-500.0,0.00027397,120]
[402764614,1768895829834,-297.85530273,0.00027397,120]
[402764615,1768895829886,-500.0,0.00027397,120]
[402764616,1768895829939,-501.08618957,0.00027397,120]
[402764617,1768895829991,-500.73937422,0.00027397,120]
[402764618,1768895830047,-500.0,0.00027397,120]
[402764619,1768895830104,-501.89053559,0.00027397,120]
[402764620,1768895830173,-500.0,0.00027397,120]
[402764621,1768895830229,-501.62536491,0.00027397,120]
[402764622,1768895830291,-500.0,0.00027397,120]
[402764623,1768895830348,-500.7596491,0.00027397,120]
[402764624,1768895830396,-500.0,0.00027397,120]
[402764625,1768895830441,-502.74641792,0.00027397,120]
[402764626,1768895830486,-500.0,0.00027397,120]
[402764627,1768895830530,-501.15473079,0.00027397,120]
[402764628,1768895830575,-356.15064647,0.00027397,120]
[402764629,1768895830621,-500.0,0.00027397,120]
[402764630,1768895830664,-543.56512501,0.00027397,120]
[402764631,1768895830708,-500.0,0.00027397,120]
[402764632,1768895830751,-500.0,0.00027397,120]
[402764633,1768895830793,-500.0,0.00027397,120]
[402764634,1768895830836,-374.21899759,0.00027397,120]
[402764635,1768895830880,-500.0,0.00027397,120]
[402764636,1768895830929,-501.49365694,0.00027397,120]
[402764637,1768895830975,-500.0,0.00027397,120]
[402764638,1768895831023,-500.0,0.00027397,120]
[402764639,1768895831069,-500.0,0.00027397,120]
[402764640,1768895831113,-500.0,0.00027397,120]
[402764641,1768895831163,-500.0,0.00027397,120]
[402764642,1768895831216,-500.0,0.00027397,120]
[402764643,1768895831269,-574.28170573,0.00027397,120]
[402764644,1768895831320,-500.0,0.00027397,120]
[402764645,1768895831369,-477.06348362,0.00027397,120]
[402764646,1768895831416,-500.0,0.00027397,120]
[402764647,1768895831464,-500.0,0.00027397,120]
[402764648,1768895831511,-500.0,0.00027397,120]
[402764649,1768895831564,-500.0,0.00027397,120]
[402764650,1768895831613,-500.0,0.00027397,120]
[402764651,1768895831658,-500.0,0.00027397,120]
[402764652,1768895831707,-236.15930525,0.00027397,120]
[402764653,1768895831755,-501.19909183,0.00027397,120]
[402764654,1768895831803,-375.90761603,0.00027397,120]
[402764655,1768895831849,-500.0,0.00027397,120]
[402764656,1768895831896,-500.0,0.00027397,120]
[402764657,1768895831944,-501.47853534,0.00027397,120]
[402764658,1768895831992,-500.0,0.00027397,120]
[402764659,1768895832041,-501.00541979,0.00027397,120]
[402764660,1768895832090,-500.0,0.00027397,120]
[402764661,1768895832142,-501.48716119,0.00027397,120]
[402764662,1768895832192,-500.0,0.00027397,120]
[402764663,1768895832242,-500.68586679,0.00027397,120]
[402764664,1768895832292,-500.0,0.00027397,120]
[402764665,1768895832341,-500.0,0.00027397,120]
[402764666,1768895832390,-500.0,0.00027397,120]
[402764667,1768895832437,-500.0,0.00027397,120]
[402764668,1768895832498,-500.0,0.00027397,120]
[402764669,1768895832552,-500.0,0.00027397,120]
[402764670,1768895832604,-219.74469366,0.00027397,120]
[402764671,1768895832656,-500.0,0.00027397,120]
[402764672,1768895832706,-500.334725,0.00027397,120]
[402764673,1768895832755,-500.0,0.00027397,120]
[402764674,1768895832809,-431.57738775,0.00027397,120]
[402764675,1768895832859,-500.0,0.00027397,120]
[402764676,1768895832910,-500.0,0.00027397,120]
[402764677,1768895832961,-500.0,0.00027397,120]
[402764678,1768895833017,-500.0,0.00027397,120]
[402764679,1768895833074,-601.58819694,0.00027397,120]
[402764680,1768895833132,-500.0,0.00027397,120]
[402764681,1768895833193,-500.0,0.00027397,120]
[402764682,1768895833247,-500.0,0.00027397,120]
[402764683,1768895833301,-500.0,0.00027397,120]
[402764684,1768895833353,-470.25612869,0.00027397,120]
[402764685,1768895833403,-500.0,0.00027397,120]
[402764686,1768895833453,-500.0,0.00027397,120]
[402764687,1768895833689,-500.0,0.00027397,120]
[402764688,1768895833742,-500.0,0.00027397,120]
[402764689,1768895833796,-500.0,0.00027397,120]
[402764690,1768895833847,-500.0,0.00027397,120]
[402764691,1768895833897,-500.0,0.00027397,120]
[402764692,1768895833949,-189.71,0.00027397,120]
[402764693,1768895834001,-500.0,0.00027397,120]
[402764694,1768895834055,-500.0,0.00027397,120]
[402764695,1768895834111,-500.0,0.00027397,120]
[402764696,1768895834161,-500.0,0.00027397,120]
[402764697,1768895834213,-500.0,0.00027397,120]
[402764698,1768895834265,-306.93930977,0.00027397,120]
[402764699,1768895834317,-500.0,0.00027397,120]
[402764700,1768895834369,-500.0,0.00027397,120]
[402764701,1768895834423,-500.0,0.00027397,120]
[402764702,1768895834474,-500.0,0.00027397,120]
[402764703,1768895834526,-500.0,0.00027397,120]
[402764704,1768895834578,-500.0,0.00027397,120]
[402764705,1768895834630,-500.0,0.00027397,120]
[402764706,1768895834684,-500.0,0.00027397,120]
[402764707,1768895834739,-448.11862122,0.00027397,120]
[402764708,1768895834796,-500.0,0.00027397,120]
[402764709,1768895834852,-500.0,0.00027397,120]
[402764710,1768895834902,-354.08289794,0.00027397,120]
[402764711,1768895834953,-500.0,0.00027397,120]
[402764712,1768895835004,-500.0,0.00027397,120]
[402764713,1768895835053,-500.0,0.00027397,120]
[402764714,1768895835106,-500.0,0.00027397,120]
[402764715,1768895835155,-500.0,0.00027397,120]
[402764716,1768895835205,-478.26543577,0.00027397,120]
[402764717,1768895835256,-500.0,0.00027397,120]
[402764718,1768895835307,-500.0,0.00027397,120]
[402764719,1768895835360,-500.0,0.00027397,120]
[402764720,1768895835411,-500.0,0.00027397,120]
[402764721,1768895835462,-500.0,0.00027397,120]
[402764722,1768895835514,-500.93653112,0.00027397,120]
[402764723,1768895835569,-500.0,0.00027397,120]
[402764724,1768895835623,-516.97598249,0.00027397,120]
[402764725,1768895835675,-500.0,0.00027397,120]
[402764726,1768895835726,-500.0,0.00027397,120]
[402764727,1768895835777,-500.0,0.00027397,120]
[402764728,1768895835829,-501.85225243,0.00027397,120]
[402764729,1768895835880,-501.88032671,0.00027397,120]
[402764730,1768895835933,-500.0,0.00027397,120]
[402764731,1768895835988,-500.0,0.00027397,120]
[402764732,1768895836038,-172.77581716,0.00027397,120]
[402764733,1768895836089,-500.0,0.00027397,120]
[402764734,1768895836145,-501.14200523,0.00027397,120]
[402764735,1768895836198,-500.0,0.00027397,120]
[402764736,1768895836249,-500.0,0.00027397,120]
[402764737,1768895836300,-500.0,0.00027397,120]
[402764738,1768895836350,-501.35975425,0.00027397,120]
[402764739,1768895836399,-500.0,0.00027397,120]
[402764740,1768895836445,-500.0,0.00027397,120]
[402764741,1768895836503,-500.78513261,0.00027397,120]
[402764742,1768895836560,-500.0,0.00027397,120]
[402764743,1768895836615,-506.47121408,0.00027397,120]
[402764744,1768895836668,-500.0,0.00027397,120]
[402764745,1768895836720,-500.0,0.00027397,120]
[402764746,1768895836773,-500.0,0.00027397,120]
[402764747,1768895836825,-502.49101821,0.00027397,120]
[402764748,1768895836879,-500.0,0.00027397,120]
[402764749,1768895836932,-500.0,0.00027397,120]
[402764750,1768895836994,-500.0,0.00027397,120]
[402764751,1768895837047,-501.33806938,0.00027397,120]
[402764752,1768895837105,-500.0,0.00027397,120]
[402764753,1768895837164,-501.67507184,0.00027397,120]
[402764754,1768895837221,-500.0,0.00027397,120]
[402764755,1768895837274,-500.0,0.00027397,120]
[402764756,1768895837327,-500.0,0.00027397,120]
[402764757,1768895837387,-287.53220988,0.00027397,120]
[402764758,1768895837448,-500.0,0.00027397,120]
[402764759,1768895837499,-590.51620642,0.00027397,120]
[402764760,1768895837551,-500.0,0.00027397,120]
[402764761,1768895837602,-500.0,0.00027397,120]
[402764762,1768895837655,-500.0,0.00027397,120]
[402764763,1768895837711,-500.0,0.00027397,120]
[402764764,1768895837762,-518.06881607,0.00027397,120]
[402764765,1768895837817,-501.82412979,0.00027397,120]
[402764766,1768895837871,-500.0,0.00027397,120]
[402764767,1768895837921,-500.0,0.00027397,120]
[402764768,1768895837978,-500.0,0.00027397,120]
[402764769,1768895838030,-500.0,0.00027397,120]
[402764770,1768895838079,-504.74740526,0.00027397,120]
[402764771,1768895838129,-501.14243441,0.00027397,120]
[402764772,1768895838179,-417.81043265,0.00027397,120]
[402764773,1768895838233,-500.0,0.00027397,120]
[402764774,1768895838283,-500.0,0.00027397,120]
[402764775,1768895838332,-500.0,0.00027397,120]
[402764776,1768895838380,-501.0676972,0.00027397,120]
[402764777,1768895838427,-500.0,0.00027397,120]
[402764778,1768895838472,-500.0,0.00027397,120]
[402764779,1768895838519,-500.0,0.00027397,120]
[402764780,1768895838568,-547.05821553,0.00027397,120]
[402764781,1768895838616,-500.0,0.00027397,120]
[402764782,1768895838851,-500.0,0.00027397,120]
[402764783,1768895838903,-500.0,0.00027397,120]
[402764784,1768895838953,-618.59782376,0.00027397,120]
[402764785,1768895839001,-500.0,0.00027397,120]
[402764786,1768895839052,-500.0,0.00027397,120]
[402764787,1768895839102,-500.0,0.00027397,120]
[402764788,1768895839155,-500.0,0.00027397,120]
[402764789,1768895839205,-500.0,0.00027397,120]
[402764790,1768895839255,-232.96246464,0.00027397,120]
[402764791,1768895839305,-500.0,0.00027397,120]
[402764792,1768895839358,-500.0,0.00027397,120]
[402764793,1768895839407,-500.0,0.00027397,120]
[402764794,1768895839454,-500.0,0.00027397,120]
[402764795,1768895839503,-500.0,0.00027397,120]
[402764796,1768895839552,-500.0,0.00027397,120]
[402764797,1768895839603,-500.73559242,0.00027397,120]
[402764798,1768895839654,-500.0,0.00027397,120]
[402764799,1768895839713,-337.92729206,0.00027397,120]
[402764800,1768895839769,-500.0,0.00027397,120]
[402764801,1768895839823,-500.0,0.00027397,120]
[402764802,1768895839875,-500.0,0.00027397,120]
[402764803,1768895839930,-501.85558493,0.00027397,120]
[402764804,1768895839985,-520.33005671,0.00027397,120]
[402764805,1768895840040,-500.0,0.00027397,120]
[402764806,1768895840098,-500.0,0.00027397,120]
[402764807,1768895840154,-257.37397338,0.00027397,120]
[402764808,1768895840229,-500.0,0.00027397,120]
[402764809,1768895840287,-500.0,0.00027397,120]
[402764810,1768895840349,-500.0,0.00027397,120]
[402764811,1768895840406,-342.92857576,0.00027397,120]
[402764812,1768895840461,-501.31470976,0.00027397,120]
[402764813,1768895840516,-500.0,0.00027397,120]
[402764814,1768895840569,-500.0,0.00027397,120]
[402764815,1768895840622,-500.0,0.00027397,120]
[402764816,1768895840678,-575.09208482,0.00027397,120]
[402764817,1768895840732,-500.0,0.00027397,120]
[402764818,1768895840784,-500.0,0.00027397,120]
[402764819,1768895840835,-375.08175711,0.00027397,120]
[402764820,1768895840885,-503.25800584,0.00027397,120]
[402764821,1768895840938,-500.0,0.00027397,120]
[402764822,1768895840990,-500.0,0.00027397,120]
[402764823,1768895841040,-592.80034022,0.00027397,120]
[402764824,1768895841089,-500.0,0.00027397,120]
[402764825,1768895841140,-500.0,0.00027397,120]
[402764826,1768895841192,-500.0,0.00027397,120]
[402764827,1768895841241,-500.0,0.00027397,120]
[402764828,1768895841289,-500.0,0.00027397,120]
[402764829,1768895841345,-517.62853371,0.00027397,120]
[402764830,1768895841395,-500.0,0.00027397,120]
[402764831,1768895841446,-500.0,0.00027397,120]
[402764832,1768895841494,-500.0,0.00027397,120]
[402764833,1768895841542,-500.0,0.00027397,120]
[402764834,1768895841587,-500.0,0.00027397,120]
[402764835,1768895841634,-500.0,0.00027397,120]
[402764836,1768895841682,-500.0,0.00027397,120]
[402764837,1768895841731,-500.0,0.00027397,120]
[402764838,1768895841778,-178.43199153,0.00027397,120]
[402764839,1768895841825,-500.0,0.00027397,120]
[402764840,1768895841873,-237.24448146,0.00027397,120]
[402764841,1768895841921,-515.25889727,0.00027397,120]
[402764842,1768895841968,-500.0,0.00027397,120]
[402764843,1768895842018,-621.0004922,0.00027397,120]
[402764844,1768895842068,-500.49376513,0.00027397,120]
[402764845,1768895842118,-500.78274569,0.00027397,120]
[402764846,1768895842167,-500.0,0.00027397,120]
[402764847,1768895842220,-518.266874,0.00027397,120]
[402764848,1768895842271,-500.0,0.00027397,120]
[402764849,1768895842326,-501.88079187,0.00027397,120]
[402764850,1768895842376,-500.0,0.00027397,120]
[402764851,1768895842425,-500.0,0.00027397,120]
[402764852,1768895842474,-500.0,0.00027397,120]
[402764853,1768895842525,-530.7251452,0.00027397,120]
[402764854,1768895842572,-223.36008752,0.00027397,120]
[402764855,1768895842620,-500.0,0.00027397,120]
[402764856,1768895842668,-500.0,0.00027397,120]
[402764857,1768895842716,-500.0,0.00027397,120]
[402764858,1768895842763,-504.41483589,0.00027397,120]
[402764859,1768895842809,-500.0,0.00027397,120]
[402764860,1768895842853,-500.0,0.00027397,120]
[402764861,1768895842901,-502.31442367,0.00027397,120]
[402764862,1768895842948,-500.0,0.00027397,120]
[402764863,1768895842997,-502.251902,0.00027397,120]
[402764864,1768895843046,-500.0,0.00027397,120]
[402764865,1768895843095,-500.0,0.00027397,120]
[402764866,1768895843147,-500.0,0.00027397,120]
[402764867,1768895843201,-501.23908563,0.00027397,120]
[402764868,1768895843252,-617.09711638,0.00027397,120]
[402764869,1768895843300,-500.0,0.00027397,120]
[402764870,1768895843349,-500.0,0.00027397,120]
[402764871,1768895843401,-517.68283903,0.00027397,120]
[402764872,1768895843448,-500.0,0.00027397,120]
[402764873,1768895843493,-501.62142421,0.00027397,120]
[402764874,1768895843537,-500.0,0.00027397,120]
[402764875,1768895843584,-500.0,0.00027397,120]
[402764876,1768895843632,-317.68266755,0.00027397,120]
[402764877,1768895843861,-500.0,0.00027397,120]
[402764878,1768895843912,-504.1185049,0.00027397,120]
[402764879,1768895843960,-500.0,0.00027397,120]
[402764880,1768895844010,-500.0,0.00027397,120]
[402764881,1768895844060,-500.0,0.00027397,120]
[402764882,1768895844109,-502.10346085,0.00027397,120]
[402764883,1768895844159,-500.0,0.00027397,120]
[402764884,1768895844212,-500.0,0.00027397,120]
[402764885,1768895844260,-500.0,0.00027397,120]
[402764886,1768895844304,-321.66218145,0.00027397,120]
[402764887,1768895844351,-193.33690059,0.00027397,120]
[402764888,1768895844394,-500.0,0.00027397,120]
[402764889,1768895844438,-500.0,0.00027397,120]